bitfinex/quotes_SOLUSD_20240530
["timestamp","ask_amount","ask_price","bid_price","bid_amount"]
[1717097984916,0.8090203,169.76,169.63,15.2909]
[1717097985114,0.8090203,169.76,169.64,0.6859341]
[1717097985450,0.8090203,169.76,169.65,62.1809]
[1717097985635,0.8090203,169.76,169.67,60.0]
[1717097985933,0.8090203,169.76,169.67,62.1806]
[1717097986138,0.8090203,169.76,169.7,60.0]
[1717097986436,0.8090203,169.76,169.7,62.1801]
[1717097986643,0.8090203,169.76,169.7,2.1801]
[1717097986941,0.8090203,169.76,169.63,15.2909]
[1717097986942,0.8090203,169.76,169.72,60.0]
[1717097987252,0.8090203,169.76,169.63,15.2909]
[1717097987253,0.8090203,169.76,169.69,2.1804]
[1717097987413,0.8090203,169.76,169.68,60.0]
[1717097987625,0.8090203,169.76,169.66,2.1807]
[1717097988244,0.8090203,169.76,169.63,15.2909]
[1717097988245,0.8090203,169.76,169.64,60.0]
[1717097988555,0.8090203,169.76,169.68,2.1805]
[1717097988749,0.8090203,169.76,169.63,15.2909]
[1717097989043,0.8090203,169.76,169.64,60.0]
[1717097989849,0.8090203,169.76,169.66,60.0]
[1717097990050,0.8090203,169.76,169.66,62.1807]
[1717097990344,2.9583303,169.76,169.65,2.1809]
[1717097990548,2.1798,169.74,169.63,2.1811]
[1717097990750,0.7788303,169.76,169.62,6.453]
[1717097990949,0.7788303,169.76,169.59,60.0]
[1717097991148,0.7788303,169.76,169.6,2.1815]
[1717097991447,6.5139,169.75,169.57,8.7065]
[1717097991653,6.5139,169.75,169.59,2.1816]
[1717097991854,6.5139,169.75,169.6,2.1815]
[1717097992435,6.5139,169.75,169.57,66.5247]
[1717097992638,6.5139,169.75,169.6,2.1815]
[1717097993141,6.5139,169.75,169.58,2.1817]
[1717097993642,6.5139,169.75,169.59,2.1816]
[1717097994043,6.5139,169.75,169.59,62.1816]
[1717097994657,2.1802,169.71,169.61,62.1814]
[1717097994865,2.1802,169.71,169.61,2.1814]
[1717097995035,2.1803,169.7,169.59,2.1816]
[1717097995237,2.1802,169.71,169.6,2.1815]
[1717097995445,2.1803,169.7,169.6,2.1815]
[1717097996859,2.1803,169.7,169.61,2.1814]
[1717097997051,2.1801,169.72,169.61,2.1814]
[1717097997254,2.1802,169.71,169.61,2.1814]
[1717097998356,2.1802,169.71,169.62,2.1812]
[1717097999638,6.5139,169.75,169.63,60.0]
[1717097999950,6.5139,169.75,169.64,2.181]
[1717098000143,2.1799,169.73,169.64,2.181]
[1717098000363,6.5139,169.75,169.59,60.0]
[1717098000539,2.1804,169.69,169.6,2.1815]
[1717098000867,2.1805,169.69,169.59,2.1817]
[1717098001049,2.1805,169.69,169.6,2.1815]
[1717098001560,6.5402,169.72,169.56,2.182]
[1717098001769,2.181,169.64,169.56,2.182]
[1717098002255,2.181,169.65,169.57,2.1819]
[1717098002443,2.181,169.65,169.56,2.1821]
[1717098002835,2.181,169.65,169.53,17.6]
[1717098002836,4.3602,169.72,169.57,60.0]
[1717098003058,2.1806,169.68,169.55,60.0]
[1717098003259,2.1807,169.67,169.58,2.1817]
[1717098003561,2.1809,169.65,169.57,2.1819]
[1717098003954,2.1808,169.66,169.57,2.1819]
[1717098004269,21.7315,169.65,169.55,2.1822]
[1717098004644,2.1811,169.64,169.56,2.1821]
[1717098004859,23.9124,169.65,169.57,2.1819]
[1717098005053,21.7315,169.65,169.58,2.1818]
[1717098005355,21.7315,169.65,169.56,60.0]
[1717098005763,21.7315,169.65,169.57,2.1819]
[1717098005764,23.9124,169.65,169.57,2.1819]
[1717098006460,2.181,169.64,169.54,60.0]
[1717098006662,2.1812,169.63,169.54,2.1822]
[1717098006868,21.7315,169.65,169.52,60.0]
[1717098007058,2.1813,169.62,169.54,2.1822]
[1717098007263,2.1812,169.63,169.55,2.1822]
[1717098007768,2.1812,169.63,169.56,2.182]
[1717098007938,2.1812,169.63,169.55,2.1822]
[1717098008457,6.5804,169.65,169.56,60.0]
[1717098008667,8.7613,169.65,169.58,2.1818]
[1717098008854,6.5804,169.65,169.58,2.1818]
[1717098009587,8.7613,169.65,169.56,60.0]
[1717098010356,2.1811,169.64,169.57,2.1819]
[1717098010547,6.5804,169.65,169.55,2.1821]
[1717098010753,4.3622,169.64,169.52,2.1826]
[1717098011076,4.3625,169.63,169.48,313.2]
[1717098011304,2.1821,169.56,169.48,315.383]
[1717098011578,2.1822,169.55,169.45,64.3669]
[1717098011777,2.1822,169.55,169.48,2.183]
[1717098011950,18.6172,169.59,169.52,2.1825]
[1717098012357,6.04464512,169.62,169.51,60.0]
[1717098012560,15.7162,169.63,169.53,60.0]
[1717098013377,15.7162,169.63,169.49,60.0]
[1717098013378,2.1818,169.59,169.49,60.0]
[1717098013673,2.1818,169.59,169.52,2.1825]
[1717098013849,15.7162,169.63,169.52,64.3652]
[1717098014245,15.7162,169.63,169.56,2.182]
[1717098014974,15.7162,169.63,169.55,2.1822]
[1717098015378,15.7162,169.63,169.54,2.1823]
[1717098016072,2.1815,169.61,169.54,2.1823]
[1717098016650,15.7162,169.63,169.49,60.0]
[1717098016871,15.7162,169.63,169.51,2.1827]
[1717098016872,2.1818,169.58,169.51,2.1827]
[1717098017087,15.7162,169.63,169.51,60.0]
[1717098017383,15.7162,169.63,169.52,2.1826]
[1717098017384,15.68599,169.63,169.52,2.1826]
[1717098017564,4.3627,169.62,169.52,2.1826]
[1717098017889,4.3627,169.62,169.52,2.1825]
[1717098018574,2.1819,169.58,169.51,2.1827]
[1717098018958,2.182,169.57,169.51,2.1827]
[1717098019270,2.1819,169.58,169.51,2.1827]
[1717098019685,6.5625,169.57,169.49,2.1829]
[1717098020172,2.1822,169.55,169.49,2.1829]
[1717098020375,2.1827,169.52,169.43,60.0]
[1717098020580,2.1827,169.52,169.46,2.1833]
[1717098020789,6.5625,169.57,169.43,60.0]
[1717098020974,13.1087,169.57,169.43,60.0]
[1717098021180,2.1825,169.53,169.43,60.0]
[1717098021666,2.1825,169.53,169.47,2.1831]
[1717098021865,2.1826,169.52,169.46,2.1833]
[1717098022273,2.1828,169.51,169.45,2.1834]
[1717098022453,2.1826,169.52,169.46,2.1833]
[1717098022654,2.1828,169.51,169.45,2.1835]
[1717098022887,2.1826,169.52,169.46,2.1834]
[1717098023260,2.1825,169.53,169.47,2.1832]
[1717098023564,2.1826,169.52,169.46,2.1833]
[1717098023964,2.1827,169.51,169.45,2.1834]
[1717098024491,2.1826,169.52,169.46,2.1833]
[1717098025349,15.7988,169.54,169.42,4.3678]
[1717098025775,2.1828,169.51,169.43,60.0]
[1717098025955,2.1826,169.52,169.46,2.1833]
[1717098026164,15.7988,169.54,169.45,2.1834]
[1717098026165,2.1827,169.51,169.45,2.1834]
[1717098026392,2.1834,169.46,169.4,2.1841]
[1717098026570,8.733,169.48,169.35,60.0]
[1717098026756,8.733,169.48,169.35,4.3696]
[1717098027296,2.1836,169.45,169.39,2.1842]
[1717098027464,6.2929,169.43,169.38,2.1843]
[1717098027973,6.2929,169.43,169.36,60.0]
[1717098028188,6.2929,169.43,169.35,4.3696]
[1717098028353,2.1837,169.43,169.35,4.3696]
[1717098028559,6.2121,169.46,169.38,2.1844]
[1717098028560,2.1836,169.44,169.38,2.1844]
[1717098029257,2.1838,169.43,169.37,2.1845]
[1717098029687,2.1837,169.44,169.38,2.1844]
[1717098030290,2.1837,169.44,169.34,4.3699]
[1717098030503,2.1838,169.43,169.37,2.1844]
[1717098030865,6.2121,169.46,169.38,2.1844]
[1717098030866,2.1837,169.44,169.38,2.1844]
[1717098031060,2.1838,169.43,169.37,2.1845]
[1717098031369,2.1839,169.42,169.37,2.1845]
[1717098031574,2.1839,169.42,169.36,2.1846]
[1717098031889,6.0052,169.41,169.37,2.1845]
[1717098032786,19.8067,169.47,169.36,2.1846]
[1717098032787,6.0052,169.4,169.36,2.1846]
[1717098032974,6.0052,169.4,169.32,70.9257]
[1717098032975,6.0052,169.4,169.37,2.1845]
[1717098033177,6.0052,169.4,169.36,2.1846]
[1717098034091,6.0052,169.4,169.37,2.1845]
[1717098034477,6.1545,169.4,169.36,2.1846]
[1717098035203,6.12425,169.4,169.36,2.1846]
[1717098036279,2.1839,169.42,169.36,2.1846]
[1717098036599,15.7725,169.4,169.3,75.298]
[1717098036780,15.7725,169.4,169.3,66.5563]
[1717098036781,17.9567,169.4,169.3,66.5563]
[1717098036974,17.9567,169.4,169.35,2.1848]
[1717098037287,2.1838,169.43,169.33,60.0]
[1717098037463,2.1838,169.43,169.37,2.1845]
[1717098037785,2.1839,169.42,169.36,2.1846]
[1717098038395,2.1839,169.42,169.34,4.3698]
[1717098038693,6.273,169.43,169.31,60.0]
[1717098038903,6.6625,169.39,169.34,2.1849]
[1717098039214,2.1843,169.39,169.3,4.3706]
[1717098039366,8.8467,169.4,169.34,2.1848]
[1717098040482,2.1843,169.39,169.33,2.185]
[1717098040691,2.1843,169.39,169.34,2.1849]
[1717098040899,6.2793,169.38,169.34,2.1849]
[1717098041296,2.1842,169.4,169.34,2.1849]
[1717098041682,31.4432,169.44,169.35,2.1848]
[1717098041683,6.3071,169.39,169.35,2.1848]
[1717098041891,2.184,169.41,169.35,2.1848]
[1717098042183,6.3071,169.42,169.37,2.1845]
[1717098042399,8.491,169.42,169.37,2.1845]
[1717098042707,8.6216,169.41,169.35,2.1847]
[1717098042874,8.6216,169.41,169.36,2.1846]
[1717098043078,6.4376,169.41,169.36,2.1846]
[1717098043309,8.6216,169.41,169.36,2.1846]
[1717098043799,6.4376,169.41,169.36,2.1846]
[1717098044680,2.1838,169.43,169.37,2.1845]
[1717098044877,2.1836,169.44,169.38,2.1843]
[1717098045185,6.4068,169.46,169.34,10.9243]
[1717098045393,2.1837,169.44,169.38,2.1844]
[1717098046595,2.1838,169.43,169.37,2.1845]
[1717098047307,2.1839,169.42,169.36,2.1846]
[1717098047816,2.1838,169.43,169.37,2.1845]
[1717098047977,2.1839,169.42,169.36,2.1846]
[1717098048488,2.1838,169.43,169.37,2.1845]
[1717098050294,2.1838,169.43,169.34,4.3697]
[1717098050295,2.1838,169.43,169.36,2.1845]
[1717098050491,10.7737,169.46,169.37,2.1844]
[1717098050709,10.7737,169.46,169.36,2.1846]
[1717098051387,2.1836,169.44,169.38,2.1844]
[1717098051584,2.1838,169.43,169.37,2.1844]
[1717098051787,6.4791,169.42,169.38,2.1844]
[1717098051997,6.4791,169.42,169.37,2.1845]
[1717098052183,6.4791,169.42,169.34,64.3697]
[1717098052591,6.4791,169.42,169.36,2.1846]
[1717098052911,6.4791,169.42,169.37,2.1845]
[1717098053709,6.4791,169.42,169.38,2.1844]
[1717098054097,6.4791,169.42,169.37,2.1845]
[1717098054497,2.1838,169.43,169.37,2.1845]
[1717098054700,2.1836,169.45,169.39,2.1842]
[1717098054906,2.1836,169.44,169.39,2.1842]
[1717098055106,2.1836,169.44,169.38,2.1843]
[1717098055412,2.1835,169.45,169.38,60.0]
[1717098055797,2.1835,169.45,169.39,2.1842]
[1717098058418,2.1836,169.44,169.39,2.1842]
[1717098058612,2.1835,169.45,169.39,2.1842]
[1717098060519,21.8718,169.47,169.34,4.3697]
[1717098060816,8.4854,169.41,169.36,2.1846]
[1717098061227,8.4854,169.41,169.33,60.0]
[1717098061228,8.4854,169.41,169.35,2.1847]
[1717098061606,6.3014,169.41,169.36,2.1846]
[1717098061895,8.4854,169.41,169.36,2.1846]
[1717098062321,4.3674,169.44,169.37,2.1845]
[1717098062322,2.1839,169.42,169.37,2.1845]
[1717098062624,12.852,169.45,169.4,2.184]
[1717098062625,6.3014,169.45,169.4,2.184]
[1717098062916,6.3014,169.45,169.39,2.1842]
[1717098063290,2.1837,169.44,169.38,2.1843]
[1717098063514,8.4849,169.45,169.39,2.1842]
[1717098064019,2.1836,169.44,169.39,2.1842]
[1717098064226,8.4849,169.45,169.39,2.1842]
[1717098064705,6.3014,169.43,169.38,2.1843]
[1717098064905,6.3014,169.43,169.35,79.6628]
[1717098064906,21.8658,169.47,169.37,60.0]
[1717098065092,24.0491,169.47,169.41,2.1839]
[1717098065298,2.1834,169.46,169.41,2.1839]
[1717098065798,2.1836,169.45,169.39,2.1842]
[1717098065998,21.8658,169.47,169.35,4.3695]
[1717098066196,2.1837,169.44,169.38,2.1844]
[1717098067215,2.1838,169.43,169.37,2.1845]
[1717098068301,2.1837,169.44,169.38,2.1844]
[1717098069016,4.3669,169.46,169.34,4.3697]
[1717098069207,2.1841,169.41,169.34,2.1848]
[1717098069404,2.1841,169.4,169.34,2.1848]
[1717098069709,2.184,169.41,169.35,2.1848]
[1717098070517,2.1842,169.4,169.35,2.1848]
[1717098070702,6.2064,169.38,169.32,8.86053611]
[1717098070896,6.6643,169.37,169.33,2.185]
[1717098071103,6.6643,169.37,169.32,2.1852]
[1717098071303,6.6643,169.37,169.29,8.86053611]
[1717098071731,2.1848,169.35,169.29,11.04603611]
[1717098071917,2.1848,169.35,169.29,2.1855]
[1717098072125,8.7644,169.35,169.3,2.1854]
[1717098072517,6.5796,169.35,169.31,2.1853]
[1717098072825,6.5796,169.35,169.3,2.1853]
[1717098073022,8.7644,169.35,169.3,2.1853]
[1717098073230,8.7644,169.35,169.29,2.1855]
[1717098073605,8.7644,169.35,169.3,2.1854]
[1717098073807,6.5796,169.35,169.3,2.1854]
[1717098074428,2.1846,169.37,169.31,2.1852]
[1717098074821,8.502,169.36,169.31,2.1852]
[1717098075014,2.1848,169.35,169.3,2.1854]
[1717098075235,8.502,169.36,169.3,2.1854]
[1717098078030,2.1846,169.37,169.31,2.1853]
[1717098078238,8.7339,169.39,169.33,2.1849]
[1717098078433,8.7339,169.39,169.33,2.185]
[1717098078814,6.5496,169.39,169.34,2.1848]
[1717098079025,8.7339,169.39,169.33,2.185]
[1717098079831,26.9582,169.43,169.34,2.1849]
[1717098079832,2.1842,169.4,169.34,2.1849]
[1717098080140,2.1848,169.35,169.29,8.86053611]
[1717098080314,2.1847,169.36,169.29,2.1855]
[1717098080753,6.289,169.38,169.29,60.0]
[1717098081040,2.1845,169.37,169.31,2.1853]
[1717098081333,6.289,169.38,169.31,2.1853]
[1717098081634,8.4734,169.38,169.29,60.0]
[1717098081817,6.289,169.38,169.32,2.1852]
[1717098082233,6.289,169.38,169.31,2.1853]
[1717098082637,2.1841,169.41,169.33,2.185]
[1717098082835,6.008,169.42,169.34,2.1848]
[1717098083043,8.1919,169.42,169.34,2.1848]
[1717098083633,2.184,169.41,169.33,2.185]
[1717098084136,8.1919,169.42,169.34,2.1849]
[1717098084323,8.1919,169.42,169.35,2.1847]
[1717098084925,2.1842,169.4,169.33,2.1849]
[1717098085622,6.008,169.42,169.29,68.86053611]
[1717098085820,2.1842,169.4,169.33,2.185]
[1717098086037,2.1844,169.38,169.32,2.1851]
[1717098086444,2.1843,169.39,169.32,2.1851]
[1717098086635,2.1843,169.39,169.28,13.23193611]
[1717098086636,2.1843,169.39,169.33,2.185]
[1717098087129,2.1844,169.38,169.33,2.185]
[1717098087358,2.185,169.34,169.28,8.86053611]
[1717098087558,16.2511,169.36,169.27,8.86053611]
[1717098087724,2.1854,169.31,169.27,8.86053611]
[1717098088041,2.1854,169.3,169.24,2.1861]
[1717098088543,8.2404,169.31,169.24,2.1861]
[1717098088744,8.2404,169.31,169.25,2.1861]
[1717098089737,2.1854,169.3,169.23,2.1862]
[1717098090955,6.0551,169.31,169.21,2.1865]
[1717098091125,2.1859,169.27,169.19,2.1867]
[1717098091449,2.1859,169.27,169.2,2.1867]
[1717098092935,2.186,169.26,169.2,2.1867]
[1717098093140,2.186,169.26,169.19,2.1868]
[1717098093538,2.1858,169.27,169.2,2.1867]
[1717098094324,2.1858,169.27,169.21,2.1866]
[1717098094556,2.1857,169.28,169.22,2.1864]
[1717098094746,18.2109,169.28,169.22,2.1864]
[1717098094946,2.1859,169.27,169.17,4.3742]
[1717098095350,2.1859,169.27,169.15,60.8392103]
[1717098095351,4.3718,169.27,169.15,60.8392103]
[1717098095832,2.1864,169.23,169.17,2.1871]
[1717098096655,2.1862,169.24,169.18,2.187]
[1717098097153,2.1859,169.27,169.21,2.1866]
[1717098097565,18.2109,169.28,169.21,2.1866]
[1717098097858,16.0252,169.28,169.2,2.1867]
[1717098098044,2.1858,169.27,169.21,2.1866]
[1717098098256,6.0551,169.31,169.23,60.0]
[1717098098435,6.0551,169.31,169.19,77.6]
[1717098098631,6.0551,169.31,169.18,8.7478]
[1717098099048,6.0551,169.31,169.19,60.0]
[1717098099330,6.0551,169.31,169.17,4.3741]
[1717098099643,4.3712,169.29,169.18,2.1869]
[1717098099951,2.1861,169.25,169.19,2.1868]
[1717098100660,4.3712,169.29,169.2,2.1867]
[1717098101039,4.3712,169.29,169.19,2.1868]
[1717098101238,2.1862,169.25,169.19,2.1868]
[1717098101635,6.1702,169.24,169.2,2.1867]
[1717098102643,2.186,169.26,169.2,2.1867]
[1717098102847,4.3712,169.29,169.19,2.1868]
[1717098102848,8.3563,169.25,169.19,2.1868]
[1717098103552,2.1862,169.24,169.18,2.1869]
[1717098104251,6.1702,169.25,169.15,5.2139103]
[1717098104464,2.1862,169.24,169.18,2.1869]
[1717098104669,2.1863,169.23,169.18,2.1869]
[1717098104859,8.5939,169.23,169.18,2.1869]
[1717098105030,2.1863,169.23,169.17,2.1871]
[1717098105530,6.1901,169.22,169.15,0.8392103]
[1717098105727,6.1901,169.22,169.18,2.1869]
[1717098106944,15.3882,169.26,169.18,60.0]
[1717098106945,2.1861,169.26,169.18,60.0]
[1717098107152,2.1861,169.26,169.2,2.1866]
[1717098108767,8.7648,169.25,169.2,2.1866]
[1717098108982,8.7648,169.25,169.2,2.1867]
[1717098109775,8.7648,169.25,169.16,60.0]
[1717098110074,8.7648,169.25,169.19,2.1868]
[1717098110762,2.1862,169.24,169.18,2.187]
[1717098111068,6.5787,169.22,169.15,0.8392103]
[1717098111359,6.5787,169.22,169.17,2.187]
[1717098111574,8.7652,169.22,169.16,2.1872]
[1717098111741,18.6307,169.22,169.17,2.1871]
[1717098111936,6.233,169.2,169.17,2.1871]
[1717098112965,2.1862,169.24,169.18,2.1869]
[1717098113361,8.4193,169.23,169.18,2.1869]
[1717098113568,8.4193,169.23,169.17,2.1871]
[1717098114474,8.4193,169.23,169.18,2.1869]
[1717098114771,6.1902,169.22,169.18,2.1869]
[1717098114968,6.1902,169.24,169.19,2.1868]
[1717098115263,6.1902,169.23,169.19,2.1868]
[1717098116068,6.1902,169.23,169.2,2.1867]
[1717098116372,8.2703,169.25,169.19,2.1868]
[1717098117558,8.6134,169.24,169.19,2.1868]
[1717098117763,8.6136,169.23,169.15,5.2137103]
[1717098117951,8.6136,169.23,169.17,2.187]
[1717098119158,8.2749,169.22,169.17,2.187]
[1717098119869,6.0884,169.22,169.17,2.187]
[1717098120370,2.1867,169.2,169.15,0.8392103]
[1717098120575,6.71,169.18,169.15,0.8392103]
[1717098120776,6.71,169.18,169.15,3.0265103]
[1717098120984,6.54,169.19,169.15,0.8392103]
[1717098121382,6.54,169.19,169.15,3.0265103]
[1717098121895,6.54,169.19,169.16,2.1872]
[1717098122076,6.54,169.19,169.15,3.0265103]
[1717098122688,6.54,169.19,169.15,0.8392103]
[1717098122870,6.54,169.19,169.15,3.0265103]
[1717098123074,6.54,169.19,169.15,0.8392103]
[1717098123273,6.54,169.19,169.15,3.0265103]
[1717098123683,2.1866,169.21,169.15,3.0265103]
[1717098123862,2.1866,169.21,169.16,2.1872]
[1717098124367,2.1867,169.2,169.15,3.0265103]
[1717098124991,22.4073,169.19,169.15,0.8392103]
[1717098125196,8.8205,169.18,169.15,0.8392103]
[1717098126079,16.6182,169.17,169.15,0.8392103]
[1717098126282,8.5669,169.16,169.15,0.8392103]
[1717098126673,2.1872,169.16,169.15,0.8392103]
[1717098126873,2.1871,169.17,169.15,0.8392103]
[1717098127062,8.8031,169.17,169.15,0.8392103]
[1717098127263,2.1872,169.16,169.15,0.8392103]
[1717098127483,25.3899,169.16,169.15,0.8392103]
[1717098127687,33.6539,169.13,169.12,0.0367749]
[1717098127890,33.6539,169.13,169.06,0.3709048]
[1717098127891,8.2021,169.07,169.06,0.3709048]
[1717098128188,33.6586,169.07,169.06,0.3709048]
[1717098128379,27.0933,169.07,169.06,0.3709048]
[1717098128585,20.5281,169.07,168.98,0.8090203]
[1717098128791,2.1887,169.05,168.99,2.1893]
[1717098129093,2.1888,169.04,168.98,2.9985203]
[1717098129273,6.0137,169.07,168.98,0.8090203]
[1717098129477,2.189,169.03,168.98,2.9985203]
[1717098129679,6.4011,169.03,168.98,2.9985203]
[1717098129983,8.59,169.03,168.98,0.8090203]
[1717098130171,6.3721,169.02,168.98,0.8090203]
[1717098130367,6.27181187,169.01,168.98,0.8090203]
[1717098130766,2.1893,169.0,168.98,0.8090203]
[1717098131075,2.1894,168.99,168.98,0.8090203]
[1717098131801,15.3311,169.03,168.98,0.8090203]
[1717098131996,2.1893,169.01,168.98,0.8090203]
[1717098132486,2.1891,169.02,168.98,0.8090203]
[1717098132990,2.1892,169.01,168.98,0.8090203]
[1717098133179,19.707,169.05,168.98,0.8090203]
[1717098133180,2.1891,169.02,168.98,0.8090203]
[1717098133575,17.5186,169.02,168.98,0.8090203]
[1717098133791,8.6272,169.01,168.98,0.8090203]
[1717098134186,6.2246,169.04,168.98,0.8090203]
[1717098134384,2.1892,169.02,168.98,0.8090203]
[1717098134688,4.3775,169.05,168.98,0.8090203]
[1717098134689,2.1894,169.0,168.98,0.8090203]
[1717098134869,2.1894,168.99,168.98,0.8090203]
[1717098135069,5.4402,168.98,168.83,8.88083972]
[1717098135269,5.4402,168.98,168.83,2.1914]
[1717098135484,15.3311,168.94,168.83,2.1914]
[1717098135696,15.3311,168.94,168.81,0.8090203]
[1717098135697,2.1907,168.9,168.84,2.1914]
[1717098135897,19.9546,168.87,168.81,0.8090203]
[1717098136107,2.1911,168.87,168.81,3.0007203]
[1717098136405,35.2878,168.92,168.81,3.0007203]
[1717098136406,19.9546,168.92,168.84,2.1914]
[1717098136696,6.4848,168.89,168.81,0.8090203]
[1717098136900,34.3823,168.86,168.81,0.8090203]
[1717098137119,2.1915,168.84,168.81,0.8090203]
[1717098137273,30.0,168.86,168.81,0.8090203]
[1717098137793,6.0946,168.85,168.81,0.8090203]
[1717098138190,30.0,168.86,168.81,0.8090203]
[1717098138396,22.6715,168.9,168.81,0.8090203]
[1717098138696,2.1909,168.88,168.81,0.8090203]
[1717098138892,2.1905,168.91,168.85,2.1911]
[1717098139099,2.1905,168.91,168.86,2.1911]
[1717098139287,2.1903,168.93,168.87,2.191]
[1717098139486,13.1362,169.0,168.86,60.0]
[1717098139702,4.3791,168.99,168.86,60.0]
[1717098139999,2.1901,168.94,168.89,2.1906]
[1717098140500,2.1901,168.94,168.88,2.1908]
[1717098141404,2.1902,168.93,168.87,2.1909]
[1717098141577,2.1902,168.93,168.88,2.1909]
[1717098141777,2.1901,168.94,168.88,2.1908]
[1717098141996,2.19,168.95,168.89,2.1907]
[1717098142295,2.1901,168.94,168.89,2.1907]
[1717098143508,2.1901,168.94,168.8,33.291]
[1717098143509,2.1905,168.91,168.82,4.3832]
[1717098143680,2.1905,168.91,168.85,2.1911]
[1717098144007,2.1906,168.91,168.85,2.1912]
[1717098144198,2.1909,168.88,168.81,0.8090203]
[1717098144521,2.1906,168.9,168.84,2.1914]
[1717098144803,2.1905,168.91,168.85,2.1912]
[1717098144977,2.1906,168.9,168.84,2.1913]
[1717098145789,4.3797,168.96,168.88,2.1908]
[1717098145991,2.1903,168.93,168.87,2.191]
[1717098146180,2.1903,168.93,168.88,2.1908]
[1717098146392,4.3789,168.99,168.88,60.0]
[1717098146577,15.3241,169.02,168.88,60.0]
[1717098146780,10.44421621,169.01,168.92,2.1902]
[1717098147005,2.1896,168.98,168.93,2.1902]
[1717098147208,2.1896,168.98,168.89,4.3815]
[1717098147407,4.3786,169.01,168.87,24.1728]
[1717098147408,2.1899,168.96,168.87,24.1728]
[1717098147588,2.1899,168.96,168.87,4.382]
[1717098147907,6.06035739,169.02,168.85,20.19]
[1717098148089,4.3795,168.97,168.85,4.3825]
[1717098148287,2.1904,168.92,168.87,2.1909]
[1717098148492,4.3798,168.96,168.83,13.1488]
[1717098148493,2.1902,168.93,168.88,2.1908]
[1717098148690,4.3798,168.96,168.85,4.3825]
[1717098148892,4.38,168.95,168.87,2.1909]
[1717098149095,2.1903,168.93,168.88,2.1908]
[1717098149283,2.1903,168.93,168.83,15.3402]
[1717098149284,2.1904,168.92,168.87,2.1909]
[1717098149479,2.1907,168.9,168.82,6.5478]
[1717098149688,2.1907,168.89,168.84,2.1913]
[1717098149892,15.331,168.94,168.85,2.1912]
[1717098150201,4.38,168.95,168.86,2.1911]
[1717098150403,4.38,168.95,168.83,4.3829]
[1717098150614,2.1902,168.94,168.89,2.1907]
[1717098150821,2.19,168.95,168.9,2.1906]
[1717098151107,6.5696,168.96,168.87,2.1909]
[1717098151296,2.191,168.88,168.83,2.1915]
[1717098151496,2.1906,168.91,168.86,2.1911]
[1717098151704,4.3801,168.95,168.83,4.3829]
[1717098151903,2.1905,168.91,168.86,2.1911]
[1717098152085,6.5698,168.96,168.88,2.1908]
[1717098152287,2.1903,168.93,168.88,2.1908]
[1717098152487,2.1903,168.93,168.84,70.9568]
[1717098152488,6.5698,168.96,168.84,88.5568]
[1717098152800,2.1904,168.92,168.83,13.149]
[1717098153000,2.1904,168.92,168.87,2.191]
[1717098153514,2.1905,168.91,168.86,2.1911]
[1717098153693,2.1904,168.92,168.87,2.191]
[1717098153891,2.1902,168.93,168.88,2.1908]
[1717098154207,2.1903,168.92,168.84,4.3826]
[1717098154400,2.1903,168.92,168.87,2.1909]
[1717098154713,2.1903,168.92,168.84,64.3826]
[1717098154901,2.1902,168.93,168.88,2.1908]
[1717098155289,2.1907,168.9,168.85,2.1911]